Cogmind - Beta 16 @@@ ROGUE MODE // 2025.10.31 @ 16:49:05 // Winter2019/RPGLIKE Player: Jaegerpls Result: Destroyed by G-50 Soldier with Heavy Laser Performance ------------- Evolutions (4) 2000 Regions Visited (5) 1000 Robots Destroyed (37) 185 Value Destroyed (1091) 1091 Prototype IDs (25) 500 Alien Tech Used (0) 0 Bonus (800) 800 TOTAL SCORE: 5576 Bonus ------- Registered with UFD 300 Met Optimus in HQ 500 Cogmind --------- Core Integrity 0/600 Matter 300/300 Energy 160/160 System Corruption 4% Temperature Cool (9) Movement Rolling (95) Ox1 Location -6/Factory Parts ------- > --- POWER (2) -------- Light Fission Core > --- PROPULSION (3) --- Wheel Flight Unit Flight Unit > --- UTILITY (5) ------ Advanced Signal Interpreter Experimental Terrain Scanner ECM Suite Hacking Suite Improved System Shield > --- WEAPON (3) ------- Maul Makeshift Hammer Scythe > --- INVENTORY (2) ---- Light Ion Engine Improved Melee Analysis Suite Peak State ------------ > --- POWER ------------ Light Fission Core > --- PROPULSION ------- Flight Unit Flight Unit Flight Unit > --- UTILITY ---------- Advanced Signal Interpreter Experimental Terrain Scanner ECM Suite Hacking Suite Improved System Shield > --- WEAPON ----------- Maul Makeshift Hammer Scythe > --- INVENTORY -------- Light Ion Engine Improved Melee Analysis Suite [Rating: 40] Favorites ----------- Power Light Ion Engine Engine Light Ion Engine Power Core Light Fission Core Propulsion Flight Unit Leg Cargo Legs Wheel Wheel Flight Unit Flight Unit Utility Signal Interpreter Device Improved Terrain Scanner Processor Signal Interpreter Hackware Hacking Suite Weapon Mining Claw Energy Gun Small Laser Impact Weapon Makeshift Hammer Slashing Weapon Mining Claw Build | -11 -10 -10 -9 -9 -6 ------- Run | Yrd Mat Sub Rec Scr Fac Slots Evolved 9 | 4 . 1 . 2 2 Power 1 | . . . . . 1 Propulsion 2 | 1 . 1 . . . Utility 4 | 2 . . . 1 1 Weapon 2 | 1 . . . 1 . Parts Attached 34 | 6 13 5 . 4 6 Power 4 | 1 1 1 . . 1 Engine 3 | 1 1 1 . . . Core 1 | . . . . . 1 Reactor . | . . . . . . Propulsion 10 | 2 3 3 . 1 1 Treads . | . . . . . . Leg 1 | . . 1 . . . Wheel 4 | 2 1 . . . 1 Hover . | . . . . . . Flight 5 | . 2 2 . 1 . Utility 11 | 1 5 . . 1 4 Device 5 | 1 2 . . 1 1 Storage . | . . . . . . Processor 4 | . 2 . . . 2 Hackware 2 | . 1 . . . 1 Protection . | . . . . . . Artifact . | . . . . . . Weapon 9 | 2 4 1 . 2 . Energy Gun 4 | 2 2 . . . . Energy Cannon . | . . . . . . Ballistic Gun . | . . . . . . Ballistic Cannon . | . . . . . . Launcher . | . . . . . . Special Weapon . | . . . . . . Impact Weapon 2 | . . 1 . 1 . Slashing Weapon 3 | . 2 . . 1 . Piercing Weapon . | . . . . . . Special Melee Weapon . | . . . . . . Unidentified Prototypes 1 | . . 1 . . . Parts Lost 2 | . . 1 . . 1 Power . | . . . . . . Propulsion 2 | . . 1 . . 1 Utility . | . . . . . . Weapon . | . . . . . . Highest Loss Streak 1 | . . 1 . . 1 To Critical Strikes . | . . . . . . Average Backups . | . . . 1 . 1 Power . | . . . . . . Propulsion . | . . . . . . Utility . | . . . 1 . . Weapon . | . . . . . . Tool/Special . | . . . . . . Unused Backups 2 | . . 1 . . 1 Power . | . . . . . . Propulsion . | . . . . . . Utility 1 | . . . . . 1 Weapon 1 | . . 1 . . . Tool/Special . | . . . . . . Average Slot Usage (%) 96 | . 98 99 100 87 88 Engine 9 | . 12 11 11 9 1 Wheel 2 | . 15 . . . . Flight 26 | . 9 32 33 28 22 Device 13 | . 21 11 11 10 15 Processor 10 | . 11 11 11 9 7 Hackware 8 | . 2 11 11 9 9 Energy Gun 2 | . 16 . . . . Impact Weapon 7 | . . 4 11 18 15 Slashing Weapon 11 | . 8 17 11 2 7 Peak Build Rating 40 | 8 12 27 16 26 40 Average Rating 17 | 4 10 14 16 21 33 On Entrance 13 | . 8 12 16 16 26 Avg Prop Armor Cover (%) 7 | . . 6 . . 9 Naked Turns . | . . . . . . Heaviest Build 18 | 6 8 9 9 12 18 Greatest Support 37 | 31 37 17 17 17 17 Greatest Overweight (x) 1 | . . . . . 1 Average Overweight (x) . | . . . . . . Largest Inventory Capacity 2 | 1 1 2 2 2 2 Average Capacity 1 | 1 1 1 2 2 2 Most Carried 2 | . 1 2 2 2 2 Average Carried 1 | . . 1 2 . 1 Final Capacity 2 | 1 1 2 2 2 2 Final Carried 2 | . 1 2 2 . 2 Class Distribution -------------------- 78% | Scavenger-Gladiator 11% | Mutant 6% | Gladiator Dominant Class ---------------- Mutant | -10/Materials Scavenger-Gladiator | -10/Subcaves Scavenger-Gladiator | -9/Recycling Scavenger-Gladiator | -9/Scraptown Gladiator | -6/Factory Resources | -11 -10 -10 -9 -9 -6 ----------- Run | Yrd Mat Sub Rec Scr Fac Matter Collected 583 | 260 130 80 . 37 76 Remotely . | . . . . . . Salvage Created 1127 | 126 441 450 . . 110 Parts 72 | 6 29 36 . . 1 Haulers Intercepted 2 | . 2 . . . . Recyclers Shooed 2 | 1 1 . . . . Parts Field Recycled . | . . . . . . Retrieved Matter . | . . . . . . Parts Self-Destructed 13 | . . 13 . . . Prevented . | . . . . . . Parts Restored . | . . . . . . Kills | -11 -10 -10 -9 -9 -6 ------- Run | Yrd Mat Sub Rec Scr Fac Combat Hostiles Destroyed 27 | . 9 15 . . 3 Melee 16 | . 2 13 . . 1 Guns 7 | . 7 . . . . Classes Destroyed 12 | 2 6 2 . . 2 Worker 1 | . 1 . . . . Builder 1 | . . . . . 1 Tunneler 2 | 2 . . . . . Hauler 2 | . 2 . . . . Recycler 1 | 1 . . . . . Operator 1 | . 1 . . . . Watcher 2 | . 2 . . . . Swarmer 5 | . 2 3 . . . Grunt 9 | . 7 2 . . . Sentry 1 | . . 1 . . . Programmer 3 | . . . . . 3 Subdweller 9 | . . 9 . . . Best Kill Streak 3 | 3 2 2 . . 1 Combat Bots Only 2 | . 2 2 . . 1 Max Kills in Single Turn 1 | 1 1 1 . . 1 Gunslinging . | . . . . . . Exploded . | . . . . . . Melee 1 | . 1 1 . . 1 Uniques/NPCs Destroyed . | . . . . . . Combat | -11 -10 -10 -9 -9 -6 -------- Run | Yrd Mat Sub Rec Scr Fac Hostile Shots Fired 158 | . 55 69 . . 34 Missed 55 | . 16 30 . . 9 Hits 103 | . 39 39 . . 25 Projectile 103 | . 39 39 . . 25 AOE 1 | . . 1 . . . Critical Strikes 1 | . . . . . 1 Damage Taken 1601 | . 523 692 . . 386 Core 1360 | . 441 588 . . 331 Absorbed by Shields . | . . . . . . Redirected to Core 830 | . 265 364 . . 201 Core Remaining (%) 72 | 100 . . . 44 . Volleys Fired 49 | 9 40 . . . . Largest 2 | 2 2 . . . . Hottest 100 | 80 100 . . . . Shots Fired 98 | 18 80 . . . . Gun 98 | 18 80 . . . . Cannon . | . . . . . . Launcher . | . . . . . . Special . | . . . . . . Kinetic . | . . . . . . Thermal 98 | 18 80 . . . . Explosive . | . . . . . . Electromagnetic . | . . . . . . Robot Hit Streak 8 | 4 8 . . . . Robot Miss Streak 3 | 2 3 . . . . Penetration Max . | . . . . . . Secondary Targets 1 | . 1 . . . . Max Gunslinging Chain 1 | . 1 . . . . Shots Hit Robots 142 | 11 64 50 . . 17 Core Hits 45 | 4 27 13 . . 1 Critical Kills . | . . . . . . Critical Parts Destroyed 6 | . . 1 . . 5 Critical Strikes 11 | . 5 1 . . 5 Burn 5 | . 5 . . . . Smash 6 | . . 1 . . 5 Melee Attacks 168 | . 26 109 . . 33 Impact 35 | . . 6 . . 29 Slashing 133 | . 26 103 . . 4 Piercing . | . . . . . . Sneak Attacks 7 | . 1 5 . . 1 Combat Hostiles 4 | . . 4 . . . Follow-up Attacks 18 | . 1 13 . . 4 Damage Inflicted 3044 | 137 910 1287 . . 710 Guns 770 | 137 633 . . . . Cannons . | . . . . . . Explosions . | . . . . . . Melee 2274 | . 277 1287 . . 710 Ramming . | . . . . . . Kinetic . | . . . . . . Thermal 770 | 137 633 . . . . Explosive . | . . . . . . Electromagnetic . | . . . . . . Impact 778 | . . 98 . . 680 Slashing 1496 | . 277 1189 . . 30 Piercing . | . . . . . . Highest Corruption 4 | . . . . . 4 Average Corruption 2 | . . . . . 2 Corruption Purged . | . . . . . . Corruption Blocked . | . . . . . . Effects 5 | . . . . . 5 Message Errors 1 | . . . . . 1 Matter Fused 1 | . . . . . 1 Data Loss (minor) 2 | . . . . . 2 Data Loss (major) 1 | . . . . . 1 Overload Shots . | . . . . . . Overflow Damage 415 | . 19 92 . . 304 Projectiles . | . . . . . . Explosions . | . . . . . . Melee 415 | . 19 92 . . 304 Knockbacks 5 | . . 1 . . 4 Impact 5 | . . 1 . . 4 Kinetic . | . . . . . . Secondary . | . . . . . . Self-Inflicted Damage . | . . . . . . Shots . | . . . . . . Rammed . | . . . . . . Targets Rammed . | . . . . . . Kicked . | . . . . . . Crushed . | . . . . . . Highest Temperature 225 | 90 225 . . . . Average Temperature 62 | 37 69 . . . . Received Heat Transfer 396 | . 243 126 . . 27 Effects 3 | . 3 . . . . Interference 3 | . 3 . . . . Siege Activations . | . . . . . . Martial Activations . | . . . . . . Shielding Activations . | . . . . . . Robots Disrupted . | . . . . . . Combat Hostiles . | . . . . . . Robots Corrupted 5 | . . 2 . . 3 Combat Hostiles 4 | . . 2 . . 2 Parts Fried 6 | . . 1 . . 5 Impact Corruptions 15 | . . 2 . . 13 Robots Melted . | . . . . . . Combat Hostiles . | . . . . . . Parts Melted 5 | . 5 . . . . Heat Transferred 2321 | 325 1996 . . . . Parts Sabotaged . | . . . . . . Parts Stolen . | . . . . . . Parts Stripped . | . . . . . . Power Chain Reactions . | . . . . . . Alert | -11 -10 -10 -9 -9 -6 ------- Run | Yrd Mat Sub Rec Scr Fac Maximum Alert Level . | . . . . . . Low Security (%) 100 | 100 100 . 100 . 100 Level 1 . | . . . . . . Level 2 . | . . . . . . Level 3 . | . . . . . . Level 4 . | . . . . . . Level 5 . | . . . . . . High Security . | . . . . . . Max Security . | . . . . . . Peak Influence 65 | 5 65 . 7 . 43 Initial . | . . . . . . Average 11 | 2 17 . . . 5 Influence Increases 678 | 15 325 215 7 . 116 Destroy 0b10 Robot/C 360 | . 180 120 . . 60 Destroy 0b10 Robot/NC 50 | 15 30 . . . 5 Destroy Leader 98 | . 48 20 . . 30 Successful Hack 23 | . 16 . 7 . . Disable Machine 30 | . 15 . . . 15 Destroy Structure 12 | . 6 . . . 6 Partial Spotted 30 | . 30 . . . . Lose Combat Pursuer 75 | . . 75 . . . Influence Decreases 677 | 15 325 215 7 . 115 Time Decay 646 | 15 304 215 7 . 105 Lost Part 10 | . . . . . 10 Purge Threat 21 | . 21 . . . . Squads Dispatched 4 | . 1 . . . 3 Investigation . | . . . . . . Extermination 2 | . . . . . 2 Reinforcement 2 | . 1 . . . 1 Assault . | . . . . . . Garrison . | . . . . . . Intercept . | . . . . . . Searches Triggered . | . . . . . . Construction Impeded 1 | . . . . . 1 Haulers Reinforced . | . . . . . . Active Scanning Responses . | . . . . . . Cargo Convoy Interrupts . | . . . . . . Stealth | -11 -10 -10 -9 -9 -6 --------- Run | Yrd Mat Sub Rec Scr Fac Distress Signals 1 | . 1 . . . . Communications Jammed . | . . . . . . Distress Signals . | . . . . . . Times Spotted 39 | . 17 18 . . 4 Peak Tracking Total 4 | . 4 2 . . 2 Tactical Retreats 4 | . . 4 . . . Traps | -11 -10 -10 -9 -9 -6 ------- Run | Yrd Mat Sub Rec Scr Fac Traps Triggered 1 | . 1 . . . . Indirectly . | . . . . . . Trap Hack Attempts . | . . . . . . Triggered . | . . . . . . Disarmed . | . . . . . . Reprogrammed . | . . . . . . Reused . | . . . . . . Traps Extracted . | . . . . . . Installed . | . . . . . . Triggered . | . . . . . . Machines | -11 -10 -10 -9 -9 -6 ---------- Run | Yrd Mat Sub Rec Scr Fac Machines Disabled 2 | . 1 . . . 1 Max in Single Turn 1 | . 1 . . . 1 Machines Repaired . | . . . . . . Machines Dismantled . | . . . . . . Machines Sabotaged . | . . . . . . Overloaded Fab Kills . | . . . . . . Hacking | -11 -10 -10 -9 -9 -6 --------- Run | Yrd Mat Sub Rec Scr Fac Machines Accessed 28 | . 9 3 6 9 1 Terminals 8 | . 7 . 1 . . Fabricators . | . . . . . . Repair Stations . | . . . . . . Recycling Units 5 | . 2 . 3 . . Scanalyzers 1 | . . . . . 1 Garrison Access . | . . . . . . Total Hacks 136 | . 22 12 38 62 2 Successful 118 | . 11 12 32 62 1 Failed 17 | . 11 . 6 . . Catastrophic 1 | . 1 . . . . Database Lockouts 1 | . . . . . 1 Manual 26 | . 18 . 8 . . Terminals 27 | . 19 . 8 . . Fabricators . | . . . . . . Repair Stations . | . . . . . . Recycling Units 9 | . 3 . 6 . . Scanalyzers 2 | . . . . . 2 Garrison Access . | . . . . . . Terminal Hacks 101 | . 2 12 25 62 . Record 94 | . . 9 24 61 . Open Door 1 | . . 1 . . . Alert Level 1 | . . . 1 . . Unreport Threat 2 | . 2 . . . . Proto ID Catalog 2 | . . 1 . 1 . Release Object 1 | . . 1 . . . Fabricator Hacks . | . . . . . . Repair Station Hacks . | . . . . . . Recycling Unit Hacks 5 | . 2 . 3 . . Report Inventory 5 | . 2 . 3 . . Scanalyzer 1 | . . . . . 1 Retrieve Study 1 | . . . . . 1 Garrison Access Hacks . | . . . . . . Unauthorized Hacks 11 | . 7 . 4 . . Terminals 9 | . 7 . 2 . . Botnet 3 | . 2 . 1 . . Skim 6 | . 5 . 1 . . Fabricators . | . . . . . . Repair Stations . | . . . . . . Recycling Units 2 | . . . 2 . . Reject 2 | . . . 2 . . Scanalyzers . | . . . . . . Garrison Access . | . . . . . . Data Cores Recovered . | . . . . . . Used . | . . . . . . Hacking Detections 12 | . 8 . 4 . . Full Trace Events . | . . . . . . Feedback Events . | . . . . . . Feedback Blocked . | . . . . . . Robot Schematics Acquired . | . . . . . . Robots Built . | . . . . . . Authchips . | . . . . . . Time . | . . . . . . Total Robot Build Rating . | . . . . . . Part Schematics Acquired . | . . . . . . Parts Built . | . . . . . . Authchips . | . . . . . . Time . | . . . . . . Total Part Build Rating . | . . . . . . Part Studies Acquired 1 | . . . . . 1 Parts Repaired . | . . . . . . Time . | . . . . . . Parts Recycled . | . . . . . . Recycled Matter . | . . . . . . Retrieved Matter . | . . . . . . Retrieved Components . | . . . . . . Parts Scanalyzed . | . . . . . . Part Schematics Acquired . | . . . . . . Parts Damaged . | . . . . . . Bothacking | -11 -10 -10 -9 -9 -6 ------------ Run | Yrd Mat Sub Rec Scr Fac Used RIF Installer . | . . . . . . Robots Hacked . | . . . . . . Non-combat . | . . . . . . Combat . | . . . . . . Robot Hacks Applied . | . . . . . . Relay Couplers Released . | . . . . . . Fabnet Peak Effective % . | . . . . . . Robots Rewired . | . . . . . . Allies Hacked . | . . . . . . Hacks Repelled . | . . . . . . Allies | -11 -10 -10 -9 -9 -6 -------- Run | Yrd Mat Sub Rec Scr Fac Total Allies . | . . . . . . Largest Group . | . . . . . . Highest-Rated Group . | . . . . . . Highest-Rated Ally . | . . . . . . Total Orders . | . . . . . . Ally Attacks . | . . . . . . Total Damage . | . . . . . . Kills . | . . . . . . Allies Corrupted . | . . . . . . Allies Melted . | . . . . . . Intel | -11 -10 -10 -9 -9 -6 ------- Run | Yrd Mat Sub Rec Scr Fac Active Infowar (turns) 6042 | 7 1057 3077 128 1027 746 Terrain 6042 | 7 1057 3077 128 1027 746 ECM 741 | . . . . . 741 Robot Analysis Total . | . . . . . . Derelict Logs Recovered 1 | . . 1 . . . Drone Launches . | . . . . . . Drone Recoveries . | . . . . . . Exploration | -11 -10 -10 -9 -9 -6 ------------- Run | Yrd Mat Sub Rec Scr Fac Turns Passed 6115 | 80 1057 3077 128 1027 746 Spaces Moved 4681 | 51 811 1721 363 1412 323 Core 3 | 2 . 1 . . . Treads . | . . . . . . Legs . | . . . . . . Wheels 514 | 49 404 . . . 61 Hover . | . . . . . . Flight 4164 | . 407 1720 363 1412 262 Fastest Speed 34 | 50 37 34 34 34 34 Average Speed 43 | 87 63 34 34 34 88 Slowest Speed 117 | 90 90 50 34 34 117 Overloaded Moves . | . . . . . . Propulsion Burnouts . | . . . . . . Robots Hopped 1 | . 1 . . . . Potential Cave-ins . | . . . . . . Cave-ins Triggered . | . . . . . . Exploration Rate (%) 57 | 3 96 97 54 86 11 Regions Visited 5 Branch Regions 3 Pre-discovered Areas 5 | . 2 1 . 2 . Known Exits Taken 4 | . 1 1 1 1 . Unknown Exits Taken 1 | 1 . . . . . Scrap Searched 14 | . . 8 . 6 . Spaces Dug 11 | . 5 . . . 6 Terrain Destroyed 11 | . 5 . . . 6 Melee 11 | . 5 . . . 6 Projectile . | . . . . . . AOE . | . . . . . . Terrain Rammed . | . . . . . . Walls Destroyed . | . . . . . . Machines Disabled . | . . . . . . Actions | -11 -10 -10 -9 -9 -6 --------- Run | Yrd Mat Sub Rec Scr Fac Total 8378 | 65 1223 4033 366 1957 734 Wait 3418 | . 315 2187 4 539 373 Move 4674 | 50 808 1720 362 1411 323 Hop 1 | . 1 . . . . Pick Up 6 | . 1 4 . . 1 Fast Attach 27 | 6 8 3 . 3 7 Attach 2 | . . 2 . . . Detach 4 | . . 1 . . 3 Swap 9 | . 5 3 . 1 . Drop 20 | . 10 6 . 3 1 Fire 49 | 9 40 . . . . Melee 131 | . 24 84 . . 23 Ram . | . . . . . . Kick . | . . . . . . Crush . | . . . . . . Escape Stasis . | . . . . . . Rewire . | . . . . . . Trap . | . . . . . . Miscellaneous 37 | . 11 23 . . 3 Route ------- -11/Scrapyard -10/Materials (discovered 6 exits: *Mat x3 / *Min x2 / *Sub) -10/Subcaves (discovered 3 exits: *Mat x2 / *Rec) -9/Recycling (discovered 2 exits: [*Fac] / *Scr) -9/Scraptown (discovered 2 exits: *Fac x2) -6/Factory (discovered 2 exits: [Fac] / [Low]) History --------- Turn | Location | Event 1 | -11/Scrapyard | Upgraded with Propulsion slot (x1) 1 | -11/Scrapyard | Upgraded with Utility slot (x2) 1 | -11/Scrapyard | Upgraded with Weapon slot (x1) 2 | -11/Scrapyard | Met Revision 17 11 | -11/Scrapyard | Discovered new exit (range 16) 81 | -11/Scrapyard | Entered Materials 257 | -10/Materials | Discovered new exit (range 8) 264 | -10/Materials | Identified exit to Materials 315 | -10/Materials | Build established: Mutant 735 | -10/Materials | Discovered exit to Materials (range 13) 755 | -10/Materials | Discovered exit to Materials (range 15) 782 | -10/Materials | Discovered new exit (range 8) 972 | -10/Materials | Discovered new exit (range 8) 974 | -10/Materials | Identified exit to Mines 1034 | -10/Materials | Build established: Scavenger-Gladiator 1106 | -10/Materials | Learned location of Mines (-9) 1131 | -10/Materials | Identified exit to Subcaves 1138 | -10/Materials | Entered Subcaves 1139 | -10/Subcaves | Identified exit to Materials 1140 | -10/Subcaves | Reached level 2 1141 | -10/Subcaves | Learned location of 1 exit from Materials 1142 | -10/Subcaves | Upgraded with Propulsion slot (x1) 1344 | -10/Subcaves | Discovered new exit (range 9) 1381 | -10/Subcaves | Identified exit to Recycling 1563 | -10/Subcaves | Ambushed by angry Subdweller bent on revenge 1774 | -10/Subcaves | Released subatomizers from SUBCON Basin 1812 | -10/Subcaves | A Subdweller sparked back to life 1812 | -10/Subcaves | A Subdweller sparked back to life 1812 | -10/Subcaves | A Subdweller sparked back to life 1832 | -10/Subcaves | Core integrity fell below 50% 1858 | -10/Subcaves | Found Prototype Leg 1858 | -10/Subcaves | Identified Cargo Legs 1860 | -10/Subcaves | Attached Cargo Legs, gained temporary slots: Utility x2 2855 | -10/Subcaves | Disturbed a concealed Subdweller 2916 | -10/Subcaves | Shifting Twisted Machinery released Sub. Machine Gun 2959 | -10/Subcaves | Shifting Twisted Machinery released Sub. Beam Cannon 3252 | -10/Subcaves | Visited 4L-MR0's lab 3348 | -10/Subcaves | Disturbed a concealed Subdweller 3903 | -10/Subcaves | Learned location of Zion (-7) 3903 | -10/Subcaves | Met a Zionite searching for "candidates" 3904 | -10/Subcaves | Shifting Twisted Machinery released Sub. Optics 4010 | -10/Subcaves | Shifting Twisted Machinery released Sub. Laser 4215 | -10/Subcaves | Entered Recycling 4217 | -9/Recycling | Reached level 3 4230 | -9/Recycling | Scanned before Scraplab entrance 4304 | -9/Recycling | Discovered new exit (range 5) 4338 | -9/Recycling | Entered Scraplab 4342 | -9/Recycling | Discovered new exit (range 2) 4342 | -9/Recycling | Identified exit to Scraptown 4343 | -9/Recycling | Entered Scraptown 4385 | -9/Scraptown | Upgraded with Utility slot (x1) 4387 | -9/Scraptown | Visited Cave Peace 4449 | -9/Scraptown | Visited Red Mages 4638 | -9/Scraptown | Visited UFD Registry 4638 | -9/Scraptown | Registered with UFD as "Nukeboard" 4638 | -9/Scraptown | Reached level 4 4638 | -9/Scraptown | Upgraded with Weapon slot (x1) 4666 | -9/Scraptown | Delivered Scrap Shield to a Scientist 4682 | -9/Scraptown | Visited Junk Repository 4693 | -9/Scraptown | Visited Science Guys 4705 | -9/Scraptown | Visited Infowarlord's Domain 4708 | -9/Scraptown | Found Exp. Terrain Scanner 4813 | -9/Scraptown | Visited Curators Association 4821 | -9/Scraptown | Discovered new exit (range 21) 4825 | -9/Scraptown | Visited Chapter 10 4843 | -9/Scraptown | Visited Botcube Research 4922 | -9/Scraptown | Visited Observation Area 5056 | -9/Scraptown | Visited LU-1G1's Boring Crew 5192 | -9/Scraptown | Discovered new exit (range 25) 5272 | -9/Scraptown | Visited Shadow of the Wyrm 5279 | -9/Scraptown | Visited TADAMA 5285 | -9/Scraptown | Visited IN-MT5's Study 5294 | -9/Scraptown | Visited Cyclists 5297 | -9/Scraptown | Entered Cyclist Reading Room 5348 | -9/Scraptown | Met Optimus 5348 | -9/Scraptown | Accepted into 0bPrime 5369 | -9/Scraptown | Identified exit to Factory 5370 | -9/Scraptown | Entered Factory 5371 | -6/Factory | Core integrity fell below 50% 5372 | -6/Factory | Reached level 5 5383 | -6/Factory | Central database locked down 5516 | -6/Factory | Upgraded with Power slot (x1) 5516 | -6/Factory | Upgraded with Utility slot (x1) 5817 | -6/Factory | Build established: Gladiator 5943 | -6/Factory | Discovered new exit (range 29) 5977 | -6/Factory | Core integrity fell below 20% 6052 | -6/Factory | Discovered new exit (range 27) 6116 | -6/Factory | Destroyed by G-50 Soldier with Heavy Laser Last Messages --------------- 06018_ Acquired 10 matter. 06019_ K-01 Serf collects debris. 06027_ R-10 Processor collects Corrupted Wheel. 06033_ System corrupted: Matter fused (-8). 06034_ Acquired 8 matter. 06050_ System corrupted: Substantial component data lost. 06052_ EXIT=FOUND 06079_ Sneak attack on U-05 Engineer. 06079_ Destroyed Wheel. 06079_ Destroyed Terrain Scan Processor. 06079_ U-05 Engineer system corrupted by crushing effect. 06079_ ALERT: Construction progress impeded, dispatching reinforcements to local area. 06080_ U-05 Engineer system terminally corrupted. 06080_ Wheel fried. 06080_ Structural Scanner fried. 06080_ Welding Torch fried. 06080_ Lgt. Ion Engine fried. 06086_ U-05 Engineer builds a Wall. 06112_ G-50 Soldier knocked back. Map ----- +----------------------------------------------------+ | ??????????#?#???? ?? ??? ????#?#?#????????????? | | ??????????##???###?????###??#??##?? ? ???????????? | | ???????###??####???? ??? ? ##?#? ? ? ?????????? | | ??????#?###?#???##?? ??? #?## ?? ? ?#????????? | | ???????###?#?#??##?? ??? ?###? ??? ??????????? | | ????##????#?#?#?#??# ?""??##???#?#+#?#??? ????? | | ????##?##??##??#?##? ?""? ###??## ??#??# ??#??? | | ??#??#?????###??#?#? ? "?? +? ?? ? ???? ? ???? | | ??#??#??#???######## ? ???###?#?# #?#? ???? | | #?##??###? ? ? ? # ? ? ?####?? ??#? ??#? | | ?###????#? ??? ?? #??#?+?####?#???# ###? ???? ? | | ??#?##??#???? #? ???? ??? ???? ? | | ###??#?#??? ??""""?## ? ?? ? ???? ? ? ?? ?# ? | | ####???##???"?""?? ?# ??? ? ? ? ? ? | | #?????##??? "?"""? ## ?? ? ? ? ? ?#?? | | ###?###?#? "??"?" ?# [!! ?? ???? ? # | | ??#????##? ???# [!!? #####??### #?? | | #??##??###?######+### [! ?? ?# ???#? | | #####??#?##?## ## ?? # ? #? | | ??#??###?####?? ##""" ? # ? ? ? | | ####? ? ? ? ##"Y ? # ??# | | ###?# ?? ?"? # " "" ##?"?" # + | | ##### ? """ # ? ? "R"" ### ? ? ##? | | ??##? ?"" # ?## """ t########### | | ?#?#?? ?? ? ? T## gk ## # ? ? | | ##?#?? ? """ # ## @ + ? # ?""? "" | | ?####? ??"" + ? ### ######## ? # """ "" | | ?###? """ # ?## ###?#### ? """ "" | | #?### ? # ####A######### + ? | | #####?####?### ### ! # # ""? "" | | ?????###?#?# ? # # # """ "" | | ?#?#??####?# ? # # # """ "" | | ?#?######### # * # # | | ###?######## ?? A# """" ########## | | ?##?######## < + """" ########## | | ###?####???# ? # """" + | | ??###?###### # """" ########## | | ??########## ? # #############+### | | #????#####?# ? ? # """" ######## ## | | ####?#######? ## """" ######## ## | | #?#??###?#### ## """" ######## ## | | ############# ## """" ######## ## | | ??####?#??##? ## ######## ## | | ##?#########?? ## % ######## ## | | #?##?##?##### #####+############## ## | | ??##########? ##### #### """" ## ## | | ???#######?## ?##### #### ""R" ## ## | | ??? ?# ##### #### "" " ## ## | | ???? ? # ##### #### ## ## | | ?? ? ? # ##### ####"""" ## ## | +----------------------------------------------------+ Best States ------------- Heat Dissipation 43 Energy Generation 18 Energy Capacity 160 Matter Stores 300 Matter Capacity 300 Sight Range 16 Robot Scan Range 10 Terrain Scan Range 30 Terrain Scan Density 310 ECM Strength 1 Additional Mass Support 6 Evasion (%) 63 Offensive Hacking 10 Defensive Hacking 12 Item Schematics ----------------- None Robot Schematics ------------------ None Fabricated ------------ Nothing Repaired ---------- Nothing Studied --------- Maul | -6/Factory | Hacked Alien Tech Used ----------------- None Achievements -------------- You Again Challenges ------------ None RPGLIKE | -11 -10 -10 -9 -9 -6 --------- Run | Yrd Mat Sub Rec Scr Fac Levels Raised 4 | . . 1 1 1 1 XP Earned 9860 | 3000 1235 1700 1000 900 2025 XP Spent 8930 | 3000 . 1500 . 2290 2140 Upgrades 24 | 10 . 3 . 7 4 Power Slot 1 | . . . . . 1 Propulsion Slot 2 | 1 . 1 . . . Utility Slot 4 | 2 . . . 1 1 Weapon Slot 2 | 1 . . . 1 . Heat Dissipation 3 | . . . . 2 1 Mass Support 1 | 1 . . . . . Inventory Capacity 2 | 1 . 1 . . . Sensor Range 5 | 4 . . . . 1 Terrain Scan Density 3 | . . . . 3 . Melee Accuracy 1 | . . 1 . . . Protomatter Created 317 | . 106 194 . . 17 Integrity Restored 747 | . 213 483 . . 51 Core 747 | . 213 483 . . 51 Protomatter Decayed 144 | . 47 97 . . . Game ------ Seed CargoRemotePrototype Manual? 0 Play Time 00:51:51 Cumulative 46.9 hours Start 2025.10.31 @ 15:54:33 End 2025.10.31 @ 16:49:05 Sessions 1 Manual Loads 0 Difficulty Rogue Special Mode Winter2019/RPGLIKE Game No. 41 Rogue 41 Adventurer 0 Explorer 0 Win Type - Total 0 Types 0/0/0/0/0/0/0/0/0/0 Lore% 44 Gallery% 31 Achievement% 29 Wizard Run 0 Options --------- Layout 0 ASCII 0 Keyboard 0 Movement Mouse Keybinds 0 Fullscreen 2 Font 24/Smallcaps Map View 76x50 Zoom Use 0% Tactical HUD 1 Map Filters NONE Filters NONE Steam 1 RUN: 4c302c55-5d8e-4105-bfe3-9e48d673a927